bitfinex/quotes_ETHUSD_20240731
["timestamp","ask_amount","ask_price","bid_price","bid_amount"]
[1722401660449,11.74374,3272.7,3272.6,0.1468589]
[1722401660654,11.81022426,3272.7,3272.6,0.1468589]
[1722401660893,16.70215813,3272.7,3272.6,0.1468589]
[1722401661051,11.75464426,3272.7,3272.6,0.1468589]
[1722401661429,14.42880416,3272.7,3272.6,0.1468589]
[1722401661878,14.4288282,3272.7,3272.6,0.1468589]
[1722401662791,12.85237928,3272.7,3272.6,0.1468589]
[1722401662952,14.11332339,3272.7,3272.6,0.1468589]
[1722401663137,12.85237928,3272.7,3272.6,0.1468589]
[1722401663669,13.7978399,3272.7,3272.6,0.1468589]
[1722401664187,19.51353928,3272.7,3272.6,0.1468589]
[1722401664369,19.83691225,3272.7,3272.6,8.9e-06]
[1722401664535,24.78380173,3272.7,3272.6,8.9e-06]
[1722401665243,22.89249225,3272.7,3272.6,8.9e-06]
[1722401665477,19.82958814,3272.7,3272.6,8.9e-06]
[1722401665982,20.85375219,3272.7,3272.6,8.9e-06]
[1722401666181,19.79507392,3272.7,3272.6,8.9e-06]
[1722401666349,19.79490822,3272.7,3272.6,8.9e-06]
[1722401666851,14.10431239,3272.7,3272.6,8.9e-06]
[1722401667354,12.84505517,3272.7,3272.6,8.9e-06]
[1722401668039,13.78933396,3272.7,3272.6,8.9e-06]
[1722401668282,12.84505517,3272.7,3272.6,8.9e-06]
[1722401671050,14.84746601,3272.7,3272.6,8.9e-06]
[1722401671583,13.90366493,3272.7,3272.6,8.9e-06]
[1722401672058,13.90367958,3272.7,3272.6,8.9e-06]
[1722401672887,13.90367395,3272.7,3272.6,8.9e-06]
[1722401673396,14.84721124,3272.7,3272.6,8.9e-06]
[1722401675151,17.90279124,3272.7,3272.6,8.9e-06]
[1722401675360,17.50925395,3272.7,3272.6,8.9e-06]
[1722401675908,18.76729821,3272.7,3272.6,8.9e-06]
[1722401676054,17.70867943,3272.7,3272.6,8.9e-06]
[1722401676261,17.5093669,3272.7,3272.6,8.9e-06]
[1722401676456,13.9037869,3272.7,3272.6,8.9e-06]
[1722401676695,15.16190457,3272.7,3272.6,8.9e-06]
[1722401676896,13.9037869,3272.7,3272.6,8.9e-06]
[1722401677202,14.84740271,3272.7,3272.6,8.9e-06]
[1722401677387,13.9037869,3272.7,3272.6,8.9e-06]
[1722401678295,14.84740271,3272.7,3272.6,8.9e-06]
[1722401678501,13.9037869,3272.7,3272.6,8.9e-06]
[1722401678713,14.84740271,3272.7,3272.6,8.9e-06]
[1722401678996,13.9037869,3272.7,3272.6,8.9e-06]
[1722401679202,12.80605188,3272.7,3272.6,8.9e-06]
[1722401679396,12.80591886,3272.7,3272.6,8.9e-06]
[1722401679596,17.11961653,3272.7,3272.6,8.9e-06]
[1722401679808,16.06101782,3272.7,3272.6,8.9e-06]
[1722401679954,17.11970659,3272.7,3272.6,8.9e-06]
[1722401680327,15.93470884,3272.7,3272.6,8.9e-06]
[1722401680726,14.67534633,3272.7,3272.6,8.9e-06]
[1722401680896,17.73092633,3272.7,3272.6,8.9e-06]
[1722401681099,18.28092633,3272.7,3272.6,8.9e-06]
[1722401681581,17.22223756,3272.7,3272.6,8.9e-06]
[1722401681788,18.28097317,3272.7,3272.6,8.9e-06]
[1722401682198,23.71275317,3272.7,3272.6,8.9e-06]
[1722401682387,22.54671355,3272.7,3272.6,8.9e-06]
[1722401682730,20.65725763,3272.7,3272.6,8.9e-06]
[1722401683085,22.5474626,3272.7,3272.6,8.9e-06]
[1722401683281,21.10200567,3272.7,3272.6,8.9e-06]
[1722401684326,24.15758567,3272.7,3272.6,8.9e-06]
[1722401684539,21.10200567,3272.7,3272.6,8.9e-06]
[1722401684907,20.61780104,3272.7,3272.6,8.9e-06]
[1722401685084,18.17580567,3272.7,3272.6,8.9e-06]
[1722401685444,20.06778968,3272.7,3272.6,8.9e-06]
[1722401685744,17.11697424,3272.7,3272.6,8.9e-06]
[1722401685891,18.17571606,3272.7,3272.6,8.9e-06]
[1722401688123,15.12013606,3272.7,3272.6,8.9e-06]
[1722401688454,16.11813067,3272.7,3272.6,8.9e-06]
[1722401688613,19.11813067,3272.7,3272.6,8.9e-06]
[1722401689049,19.11814115,3272.7,3272.6,8.9e-06]
[1722401689209,20.81561162,3272.7,3272.6,8.9e-06]
[1722401689407,21.75802199,3272.7,3272.6,8.9e-06]
[1722401689706,21.75804449,3272.7,3272.6,8.9e-06]
[1722401689918,27.42888957,3272.7,3272.6,8.9e-06]
[1722401690149,24.81362449,3272.7,3272.6,8.9e-06]
[1722401690359,24.37330957,3272.7,3272.6,8.9e-06]
[1722401690564,27.42888957,3272.7,3272.6,8.9e-06]
[1722401690857,27.97888957,3272.7,3272.6,8.9e-06]
[1722401691080,24.30484969,3272.7,3272.6,8.9e-06]
[1722401691237,27.03645735,3272.7,3272.6,8.9e-06]
[1722401691599,27.97849719,3272.7,3272.6,8.9e-06]
[1722401691868,25.86520626,3272.7,3272.6,8.9e-06]
[1722401692023,28.92078626,3272.7,3272.6,8.9e-06]
[1722401692224,25.86520626,3272.7,3272.6,8.9e-06]
[1722401692423,25.86522011,3272.7,3272.6,8.9e-06]
[1722401692735,25.86524586,3272.7,3272.6,8.9e-06]
[1722401692941,25.31524586,3272.7,3272.6,8.9e-06]
[1722401693167,19.11807313,3272.7,3272.6,8.9e-06]
[1722401693336,17.24873572,3272.7,3272.6,8.9e-06]
[1722401693668,19.46221639,3272.7,3272.6,8.9e-06]
[1722401693872,14.19315572,3272.7,3272.6,8.9e-06]
[1722401694438,2.51231983,3272.7,3272.6,8.9e-06]
[1722401694673,3.02229127,3272.7,3272.6,8.9e-06]
[1722401694981,1.12526833,3272.7,3272.6,2.4078089]
[1722401695265,1.33124981,3272.7,3272.6,2.64858979]
[1722401695472,0.06648426,3272.7,3272.6,2.64858979]
[1722401695637,2.38956471,3272.7,3272.6,2.64858979]
[1722401695822,0.06648426,3272.7,3272.6,2.64858979]
[1722401696025,2.70571381,3272.7,3272.6,2.64858979]
[1722401696239,1.12490639,3272.7,3272.6,2.64858979]
[1722401696488,1.12490639,3272.7,3272.6,2.4078089]
[1722401696489,2.70576595,3272.7,3272.6,2.4078089]
[1722401696686,4.18048639,3272.7,3272.6,2.4078089]
[1722401696974,4.18048639,3272.7,3272.6,8.9e-06]
[1722401697179,1.12490639,3272.7,3272.6,8.9e-06]
[1722401697867,0.06648426,3272.7,3272.6,8.9e-06]
[1722401698076,1.64751378,3272.7,3272.6,8.9e-06]
[1722401698228,1.58102952,3272.7,3272.6,8.9e-06]
[1722401698570,1.64466308,3272.7,3272.6,8.9e-06]
[1722401698724,0.06363356,3272.7,3272.6,8.9e-06]
[1722401699043,3.05512,3273.2,3272.6,8.9e-06]
[1722401699044,1.58101638,3272.8,3272.6,8.9e-06]
[1722401699267,1.32871767,3272.7,3272.6,8.9e-06]
[1722401699471,1.32866035,3272.7,3272.6,8.9e-06]
[1722401699903,0.06388799,3272.7,3272.6,8.9e-06]
[1722401700223,1.64492862,3272.7,3272.6,8.9e-06]
[1722401700556,0.06388799,3272.7,3272.6,8.9e-06]
[1722401700784,1.89724876,3272.9,3272.6,8.9e-06]
[1722401700958,0.06388799,3272.7,3272.6,8.9e-06]
[1722401701172,6.17504799,3272.7,3272.6,8.9e-06]
[1722401701511,6.07492947,3272.7,3272.6,8.9e-06]
[1722401701797,4.17791812,3272.7,3272.6,8.9e-06]
[1722401702003,6.07492947,3272.7,3272.6,8.9e-06]
[1722401702369,4.17791812,3272.7,3272.6,8.9e-06]
[1722401702770,6.07492947,3272.7,3272.6,8.9e-06]
[1722401702986,3.01934947,3272.7,3272.6,8.9e-06]
[1722401703219,1.12233812,3272.7,3272.6,8.9e-06]
[1722401703504,0.06388799,3272.7,3272.6,8.9e-06]
[1722401703722,1.64515021,3272.7,3272.6,8.9e-06]
[1722401703920,0.06386619,3272.7,3272.6,8.9e-06]
[1722401704224,3.05531,3273.0,3272.6,8.9e-06]
[1722401704366,0.06386619,3272.7,3272.6,8.9e-06]
[1722401704559,1.58133008,3272.7,3272.6,8.9e-06]
[1722401704756,0.06386619,3272.7,3272.6,8.9e-06]
[1722401705599,3.11944619,3272.7,3272.6,8.9e-06]
[1722401705812,6.07572704,3272.7,3272.6,8.9e-06]
[1722401706686,3.11944619,3272.7,3272.6,8.9e-06]
[1722401707075,0.06386619,3272.7,3272.6,8.9e-06]
[1722401708419,3.11944619,3272.7,3272.6,8.9e-06]
[1722401709698,0.06386619,3272.7,3272.6,8.9e-06]
[1722401710211,3.11834398,3272.7,3272.6,8.9e-06]
[1722401710438,0.06276398,3272.7,3272.6,8.9e-06]
[1722401710810,1.64383345,3272.7,3272.6,8.9e-06]
[1722401711017,1.26487315,3272.7,3272.6,5.3710789]
[1722401711321,1.3287244,3272.7,3272.6,3.15809279]
[1722401711612,1.32873016,3272.7,3272.6,3.15809279]
[1722401711815,1.32873016,3272.7,3272.6,6.21376279]
[1722401712610,0.06385125,3272.7,3272.6,6.21376279]
[1722401712813,1.32873016,3272.7,3272.6,6.21376279]
[1722401713025,0.94852342,3272.7,3272.6,6.21376279]
[1722401714342,0.94852342,3272.8,3272.6,6.21376279]
[1722401714645,0.94852342,3272.8,3272.7,0.92694728]
[1722401715227,1.01254546,3272.8,3272.7,0.92694728]
[1722401715435,1.01254546,3272.8,3272.7,3.98252728]
[1722401715623,1.01254546,3272.8,3272.7,7.09921571]
[1722401715857,0.06402204,3272.8,3272.7,7.03810728]
[1722401716039,0.94852342,3272.9,3272.8,3.05548]
[1722401716218,0.94852342,3272.9,3272.8,3.99082162]
[1722401716414,1.01268353,3272.9,3272.8,3.99082162]
[1722401716812,0.06416011,3272.9,3272.8,0.93534162]
[1722401717008,0.06416011,3272.9,3272.6,2.3154089]
[1722401717222,0.94802396,3272.8,3272.6,2.3154089]
[1722401717657,0.06420733,3272.7,3272.6,5.3710789]
[1722401718027,0.94802396,3272.8,3272.7,3.05558]
[1722401718214,0.94802396,3272.9,3272.7,3.05558]
[1722401718415,0.94802396,3272.9,3272.8,0.53709889]
[1722401718615,1.26405536,3272.9,3272.8,0.53709889]
[1722401718821,0.94801871,3272.9,3272.8,0.48709889]
[1722401719417,0.94801871,3273.0,3272.9,3.05539]
[1722401719815,0.94801871,3273.1,3273.0,8.5692]
[1722401720018,0.94801871,3273.2,3273.1,6.1104]
[1722401720321,0.94811564,3273.6,3273.4,3.05492]
[1722401720517,0.94811564,3273.7,3273.4,3.05492]
[1722401720722,0.94811564,3273.8,3273.6,2.3815]
[1722401721151,0.94811564,3273.8,3273.7,3.05464]
[1722401721334,0.94811564,3273.9,3273.7,3.05464]
[1722401721866,21.02415418,3274.1,3273.7,3.05464]
[1722401721867,0.94811564,3273.8,3273.7,3.05464]
[1722401722174,0.94811564,3274.0,3273.8,3.05455]
[1722401722374,0.94811564,3274.1,3273.8,3.903628]
[1722401722873,0.94811564,3274.1,3273.9,3.05445]
[1722401723035,1.26415418,3274.2,3273.9,3.05445]
[1722401723036,0.94811564,3274.2,3273.9,3.05445]
[1722401723361,0.9471275,3274.2,3273.8,3.96469178]
[1722401723530,1.26283667,3274.4,3273.8,3.96469178]
[1722401723531,0.9471275,3274.3,3273.8,3.96469178]
[1722401723864,0.9471275,3274.3,3274.0,3.05434]
[1722401724070,0.9471275,3274.2,3273.8,0.849078]
[1722401724218,0.9471275,3274.4,3274.0,3.05436]
[1722401725256,0.9471275,3274.5,3274.0,3.05436]
[1722401726055,0.9471275,3274.5,3273.9,3.50588017]
[1722401726227,0.9471275,3274.6,3274.1,0.06108099]
[1722401727174,0.9471275,3274.6,3274.0,2.2808]
[1722401727175,0.06276606,3274.5,3274.0,2.2808]
[1722401727376,0.06276606,3274.5,3274.1,0.32819506]
[1722401727575,4.0008775,3274.7,3274.0,5.33513]
[1722401727774,0.06284245,3274.4,3274.3,3.05408]
[1722401728073,4.0006575,3274.9,3274.1,3.05427]
[1722401728234,0.06292973,3274.4,3274.3,3.05408]
[1722401728431,4.0005675,3275.0,3274.3,3.05408]
[1722401728432,3.05344,3275.0,3274.3,3.05408]
[1722401728776,2.3422,3273.6,3270.4,2.3951]
[1722401729082,2.577,3272.2,3271.3,2.2808]
[1722401729323,0.94446961,3272.5,3271.4,35.0]
[1722401729432,0.94446961,3272.4,3271.5,3.04901288]
[1722401729629,0.69266483,3272.4,3271.8,3.0564]
[1722401729850,0.62968055,3272.4,3271.6,3.0566]
[1722401730053,0.06245671,3272.3,3271.5,3.05667]
[1722401730264,0.06245671,3272.3,3271.7,35.0]
[1722401730826,3.74808726,3272.3,3271.7,35.0]
[1722401732073,0.72779569,3272.3,3271.7,38.0565]
[1722401732226,0.09811514,3272.3,3271.7,38.0565]
[1722401732677,0.09811514,3272.3,3271.7,35.0]
[1722401732855,0.72779569,3272.3,3271.7,35.0]
[1722401733035,3.78377569,3272.3,3271.7,35.0]
[1722401734482,3.68610055,3271.8,3271.7,35.0]
[1722401734769,7.15542473,3271.8,3271.7,35.0]
[1722401735583,6.21095512,3271.8,3271.7,35.0]
[1722401735928,3.15453512,3271.8,3271.7,35.0]
[1722401736457,0.09811512,3271.8,3271.7,35.0]
[1722401736875,0.62986258,3271.8,3271.7,35.0]
[1722401737080,0.7277119,3271.8,3271.7,35.0]
[1722401737588,3.7841319,3271.8,3271.7,35.0]
[1722401738566,3.7841319,3271.8,3270.7,2.4828]
[1722401738567,3.05695,3271.3,3270.7,2.4828]
[1722401738768,3.05707,3271.1,3270.4,3.05772]
[1722401739184,0.097802,3271.0,3270.9,35.0]
[1722401739365,3.154962,3271.0,3270.9,35.0]
[1722401739767,3.3589929,3271.0,3269.5,2.4422]
[1722401740017,3.05807,3270.1,3269.5,2.4422]
[1722401740320,6.26426627,3270.5,3269.6,35.0]
[1722401740461,0.09774373,3270.0,3269.6,35.0]
[1722401740669,3.05777,3270.4,3269.6,35.0]
[1722401740863,0.09774373,3269.9,3269.7,3.04901288]
[1722401741104,2.577,3270.5,3269.8,3.05827]
[1722401741470,0.09774373,3270.4,3269.9,35.0]
[1722401742381,3.15547373,3270.4,3269.9,35.0]
[1722401742592,0.09774373,3270.4,3269.9,35.0]
[1722401742795,0.09774373,3270.4,3270.0,0.40179113]
[1722401743194,3.05736,3270.8,3270.0,0.40179113]
[1722401743518,0.0973211,3270.3,3270.1,3.05799]
[1722401743670,3.05743,3270.8,3270.0,0.40179113]
[1722401744014,3.1545925,3270.7,3270.0,0.40179113]
[1722401744178,3.0576,3270.6,3269.9,35.0]
[1722401744412,3.05765,3270.5,3269.9,35.0]
[1722401744618,3.1547925,3270.5,3269.9,35.0]
[1722401745031,3.05774,3270.4,3269.9,35.0]
[1722401745250,3.05785,3270.3,3269.9,35.0]
[1722401745679,3.1551025,3270.2,3269.9,35.0]
[1722401745824,0.0971425,3270.2,3269.9,35.0]
[1722401746003,3.05785,3270.3,3269.9,35.0]
[1722401746208,3.05792,3270.2,3269.9,35.0]
[1722401746443,3.155037,3270.2,3269.9,35.0]
[1722401746652,3.05792,3270.2,3269.9,35.0]
[1722401747926,3.05773,3270.4,3269.9,35.0]
[1722401748169,0.09712793,3270.3,3269.9,35.0]
[1722401748454,3.05764,3270.5,3269.9,35.85498757]
[1722401748618,12.867,3270.9,3269.9,35.85498757]
[1722401748619,0.09712793,3270.2,3269.9,35.0]
[1722401748810,3.05774,3270.4,3269.9,35.0]
[1722401749210,0.09713157,3270.3,3269.9,35.0]
[1722401749640,0.09713157,3270.3,3270.0,3.0581]
[1722401749849,3.05745,3270.7,3270.0,3.0581]
[1722401750155,3.05754,3270.6,3270.0,3.0581]
[1722401750449,0.0971972,3270.5,3269.9,39.18775874]
[1722401750825,0.0971972,3270.5,3270.1,3.05794]
[1722401751027,13.34728,3270.9,3270.2,3.363684]
[1722401751224,0.0972154,3270.4,3270.2,3.05789]
[1722401751409,3.05736,3270.8,3270.0,3.05804]
[1722401751605,3.05736,3270.8,3270.1,3.058]
[1722401751806,0.0972154,3270.7,3270.1,3.058]
[1722401752287,3.05757,3270.6,3269.9,39.18776874]
[1722401752664,3.05757,3270.6,3269.9,35.0]
[1722401752990,12.867,3270.9,3269.9,35.0]
[1722401752991,3.05782,3270.3,3269.9,35.0]
[1722401753443,0.09724093,3270.2,3269.9,35.0]
[1722401753890,3.05791,3270.2,3269.9,35.0]
[1722401754461,3.0581,3270.0,3269.9,35.0]
[1722401754797,3.0581,3270.0,3269.3,3.2055489]
[1722401754963,0.0966069,3269.9,3269.3,3.83198979]
[1722401755288,3.1548669,3269.9,3269.3,0.77329979]
[1722401755493,3.1548669,3269.9,3269.3,3.2056089]
[1722401755700,0.0966069,3269.9,3269.3,3.2056089]
[1722401756450,3.05818,3270.0,3269.4,3.05866]
[1722401756754,0.0966069,3269.9,3269.4,3.05866]
[1722401757105,3.0581,3270.0,3269.3,0.1468589]
[1722401757269,3.05833,3269.8,3269.3,0.1468589]
[1722401757655,0.0965012,3269.7,3269.3,0.1468589]
[1722401758198,0.0965012,3269.6,3269.3,0.46743579]
[1722401758666,3.05833,3269.8,3269.3,0.46743579]
[1722401758853,3.05833,3269.8,3269.3,0.1468589]
[1722401759055,0.0965012,3269.7,3269.3,0.1468589]
[1722401759374,3.0584,3269.7,3269.3,0.1468589]
[1722401759574,0.0965012,3269.6,3269.3,0.1468589]
[1722401759778,3.05866,3269.4,3269.3,0.1468589]
[1722401760004,3.15493513,3269.4,3269.3,0.1468589]
[1722401760147,0.09627513,3269.4,3269.3,0.1468589]
[1722401760497,3.05842,3269.7,3269.3,0.1468589]
[1722401760698,0.09627513,3269.4,3269.3,0.1468589]
[1722401760906,5.63501,3270.1,3269.3,0.1468589]
[1722401761071,0.09627513,3269.4,3269.3,3.26677659]
[1722401761399,3.05801,3270.1,3269.3,3.89933525]
[1722401761563,7.29,3270.3,3269.3,0.20802659]
[1722401761905,3.05825,3269.9,3269.3,0.1468589]
[1722401762187,3.05792,3270.2,3269.5,3.05848]
[1722401762391,0.09618396,3270.1,3269.6,3.05847]
[1722401762612,7.29,3270.3,3269.3,0.1468589]
[1722401762769,0.09624233,3270.0,3269.5,3.05856]
[1722401763101,3.05792,3270.2,3269.5,3.37910189]
[1722401763414,3.05779,3270.4,3269.6,3.05845]
[1722401763556,0.09624233,3270.1,3269.6,3.05845]
[1722401763882,6.05782,3270.3,3269.6,3.05845]
[1722401764082,0.09628243,3270.0,3269.4,0.06116433]
[1722401764258,3.0,3270.3,3269.5,3.0585]
[1722401764457,0.09628243,3269.9,3269.5,3.0585]
[1722401764764,0.09628243,3269.8,3269.6,3.05845]
[1722401765100,0.09628243,3269.8,3269.4,0.62166865]
[1722401765101,7.29,3270.6,3269.9,3.05818]
[1722401765256,3.0,3270.5,3269.9,3.05818]
[1722401765654,3.05729,3270.9,3269.4,0.56050432]
[1722401765960,3.05729,3270.9,3270.2,3.05785]
[1722401766272,3.05729,3270.9,3270.3,35.0]
[1722401766653,9.867,3271.0,3270.3,38.05781]
[1722401766654,7.29,3271.0,3270.3,38.05781]
[1722401766958,7.29,3271.0,3270.5,3.05762]
[1722401767976,7.29,3271.0,3270.6,3.05752]
[1722401768352,5.63379,3271.4,3270.7,3.05744]
[1722401768553,5.63379,3271.4,3270.7,3.05011589]
[1722401768758,3.05679,3271.4,3270.7,3.05011589]
[1722401768999,3.05691,3271.3,3270.7,3.05011589]
[1722401769183,3.05676,3271.5,3270.7,3.05011589]
[1722401769385,1.05895894,3271.4,3270.9,3.05723]
[1722401769710,7.29,3271.7,3271.0,3.05714]
[1722401769857,8.824015,3271.7,3271.0,3.05714]
[1722401770376,3.05661,3271.6,3270.9,3.05725]
[1722401770581,11.880545,3271.7,3271.0,3.05715]
[1722401770791,8.824015,3271.7,3271.0,3.05715]
[1722401770986,11.880535,3271.7,3271.0,3.05715]
[1722401771368,11.880535,3271.7,3270.4,38.05766]
[1722401771369,3.05704,3271.2,3270.4,38.05766]
[1722401771571,3.05679,3271.4,3270.7,3.05743]
[1722401771776,3.05664,3271.6,3270.8,3.05726]
[1722401771989,8.824015,3271.7,3271.0,3.05715]
[1722401772158,0.09079031,3271.6,3271.2,3.05698]
[1722401772359,0.09079031,3271.6,3271.4,3.05679]
[1722401772814,10.34593,3272.4,3271.6,3.05657]
[1722401773103,0.09088921,3272.3,3271.7,3.05644]
[1722401773497,2.577,3272.6,3271.3,3.05681]
[1722401773687,3.05614,3272.1,3271.4,38.05679]
[1722401773894,3.05614,3272.1,3271.4,35.0]
[1722401774255,3.05614,3272.1,3271.4,38.05677]
[1722401774256,0.09102105,3272.0,3271.4,38.05677]
[1722401774486,0.09102105,3272.0,3271.5,3.05669]
[1722401774900,3.05605,3272.2,3271.5,3.05669]
[1722401775097,0.09102105,3271.9,3271.5,3.05669]
[1722401775397,0.09102105,3271.9,3271.4,35.0]
[1722401775398,3.05614,3272.1,3271.4,38.05679]
[1722401775582,0.09102105,3272.0,3271.4,38.05679]
[1722401776003,0.09102105,3272.0,3271.4,38.04901288]
[1722401776314,3.68512751,3272.3,3271.4,38.04901288]
[1722401776474,0.09102105,3271.9,3271.4,3.05672]
[1722401776676,3.20617751,3272.2,3271.0,12.91666]
[1722401776886,3.14750105,3271.8,3271.1,3.057]
[1722401777087,3.14750105,3271.8,3271.0,12.91666]
[1722401777088,3.05666,3271.6,3271.0,9.8595]
[1722401777390,3.05666,3271.6,3271.0,2.4495]
[1722401777589,3.05666,3271.6,3271.0,40.4495]
[1722401777890,3.05652,3271.7,3271.0,46.55560288]
[1722401778092,3.05661,3271.6,3271.0,43.49851288]
[1722401778416,3.05672,3271.5,3271.0,43.49851288]
[1722401778614,3.05661,3271.6,3271.0,3.0]
[1722401778816,0.09102105,3271.5,3270.9,3.0]
[1722401779183,3.05642,3271.8,3271.0,3.05714]
[1722401779409,0.09102105,3271.7,3271.0,3.05714]
[1722401779608,0.63060723,3271.9,3270.9,3.0]
[1722401779818,0.09102105,3271.8,3271.3,3.05682]
[1722401780136,3.05633,3271.9,3271.3,3.05682]
[1722401780423,3.68674723,3272.1,3271.4,3.05677]
[1722401780732,0.63060723,3272.1,3271.5,3.05669]
[1722401780895,0.94591084,3272.2,3271.6,0.06112485]
[1722401780896,0.63060723,3272.2,3271.6,0.06112485]
[1722401781223,0.63060723,3272.3,3271.8,3.05641]
[1722401781427,0.88830723,3272.5,3271.8,0.06112377]
[1722401781592,0.88830723,3272.5,3271.8,3.0564]
[1722401781773,0.63060723,3272.6,3272.1,3.05613]
[1722401781977,0.63060723,3272.7,3272.1,3.05613]
[1722401782179,0.63060723,3272.7,3272.1,0.06111493]
[1722401782380,7.92060723,3272.8,3272.1,0.06111493]
[1722401782692,7.92060723,3272.8,3272.0,3.0562]
[1722401782892,7.92060723,3272.8,3272.1,0.06111365]
[1722401783220,9.37055019,3272.8,3271.8,3.05638]
[1722401783425,3.05576,3272.5,3271.8,3.05638]
[1722401784020,3.68629938,3272.7,3271.9,3.0563]
[1722401784226,3.68629938,3272.7,3272.0,3.05623]
[1722401784380,3.05578,3272.5,3271.7,2.4259]
[1722401784581,3.68643938,3272.5,3271.7,5.48235]
[1722401784826,3.05605,3272.2,3271.6,3.0]
[1722401785384,3.05633,3271.9,3271.3,5.40385]
[1722401785900,3.05657,3271.7,3270.9,3.0572]
[1722401786240,3.05661,3271.6,3271.0,1.0]
[1722401786527,3.0567,3271.5,3271.0,1.0]
[1722401786935,3.05687,3271.4,3271.0,1.0]
[1722401787133,3.05676,3271.5,3271.0,1.0]
[1722401787283,0.0918302,3271.3,3271.0,1.0]
[1722401787490,0.09170574,3271.4,3271.0,4.05716]
[1722401787718,3.05661,3271.6,3271.0,4.05716]
[1722401787918,0.09170574,3271.3,3271.0,1.0]
[1722401788225,3.05707,3271.1,3271.0,1.0]
[1722401788390,3.67764757,3271.1,3271.0,1.0]
[1722401788588,6.73471757,3271.1,3271.0,1.0]
[1722401788816,7.77241238,3271.1,3271.0,1.0]
[1722401789199,6.82642331,3271.1,3271.0,1.0]
[1722401789399,8.08774208,3271.1,3271.0,1.0]
[1722401790150,6.82642331,3271.1,3271.0,1.0]
[1722401790317,8.08774208,3271.1,3271.0,1.0]
[1722401790640,6.82642331,3271.1,3271.0,1.0]
[1722401790944,8.08633651,3271.1,3271.0,1.0]
[1722401791344,6.82642331,3271.1,3271.0,1.0]
[1722401791647,5.02930249,3271.1,3271.0,1.0]
[1722401792232,6.82642331,3271.1,3271.0,1.0]
[1722401792548,5.02927764,3271.1,3271.0,1.0]
[1722401792753,5.02922887,3271.1,3271.0,1.0]
[1722401793103,4.71435179,3271.1,3271.0,1.0]
[1722401793319,1.3515813,3271.1,3271.0,1.0]
[1722401793544,1.03683337,3271.1,3271.0,1.0]
[1722401794210,0.09170574,3271.1,3271.0,1.0]
[1722401794438,4.09390337,3271.1,3271.0,1.0]
[1722401794945,0.09170574,3271.1,3271.0,1.0]
[1722401795157,3.14877574,3271.1,3271.0,1.0]
[1722401795339,4.09391196,3271.1,3271.0,1.0]
[1722401795873,1.03684196,3271.1,3271.0,1.0]
[1722401796005,0.72191183,3271.1,3271.0,1.0]
[1722401796208,0.09170574,3271.1,3271.0,1.0]
[1722401796606,0.72194767,3271.1,3271.0,1.0]
[1722401796843,0.09170574,3271.1,3271.0,1.0]
[1722401798452,0.63024193,3271.3,3271.0,1.0]
[1722401798753,3.77792063,3271.2,3271.0,1.0]
[1722401798925,0.63026768,3271.1,3271.0,1.0]
[1722401799425,0.09071704,3271.1,3271.0,1.0]
[1722401799743,1.03585326,3271.1,3271.0,1.0]
[1722401799947,0.09071704,3271.1,3271.0,1.0]
[1722401800364,4.09292326,3271.1,3271.0,1.0]
[1722401800529,3.14778704,3271.1,3271.0,1.0]
[1722401801082,0.72111527,3271.1,3271.0,1.0]
[1722401801388,0.09071704,3271.1,3271.0,1.0]
[1722401802185,0.72123505,3271.1,3271.0,4.05716]
[1722401802369,0.09071704,3271.1,3271.0,4.462876]
[1722401802693,0.63051801,3271.4,3271.0,39.462876]
[1722401802993,0.63051801,3271.4,3271.1,3.05701]
[1722401803196,11.60750817,3271.8,3271.0,36.405716]
[1722401803197,0.09095147,3271.3,3271.2,3.04901288]
[1722401803487,0.63051801,3271.5,3271.2,3.04901288]
[1722401803651,0.09102472,3271.3,3271.2,3.05697]
[1722401803850,0.63051801,3271.6,3271.3,3.05682]
[1722401804055,0.09102472,3271.5,3271.2,0.06113144]
[1722401804347,0.72154273,3271.5,3271.2,0.67006165]
[1722401804950,0.72154273,3271.5,3271.2,3.72704165]
[1722401805151,0.72154273,3271.5,3271.2,0.67006165]
[1722401805492,3.68730801,3271.4,3271.0,1.0]
[1722401805660,0.63051801,3271.3,3271.0,1.0]
[1722401805861,0.72165261,3271.2,3271.0,4.05716]
[1722401806256,0.72165261,3271.2,3271.0,1.0]
[1722401806598,0.0911346,3271.2,3271.0,1.0]
[1722401806899,0.63051801,3271.3,3271.0,1.0]
[1722401807103,0.0911346,3271.1,3271.0,1.0]
[1722401807314,0.63051801,3271.3,3271.0,4.05716]
[1722401807802,0.0911346,3271.2,3271.0,4.05716]
[1722401808103,0.63051801,3271.3,3271.0,4.768602]
[1722401808308,0.0911346,3271.1,3271.0,4.768602]
[1722401808520,0.63051801,3271.3,3271.0,4.768602]
[1722401808917,0.0911346,3271.2,3271.0,4.768602]
[1722401809276,0.63051801,3271.2,3271.0,4.768602]
[1722401809623,0.0911346,3271.1,3271.0,4.768602]
[1722401810117,0.63051801,3271.2,3271.1,3.05707]
[1722401810334,0.63051801,3271.2,3271.1,6.8967172]
[1722401810616,0.63051801,3271.3,3271.2,3.05698]
[1722401811615,7.29,3271.8,3271.3,3.05688]
[1722401811811,7.29,3271.8,3271.4,6.11358]
[1722401811812,0.94818976,3271.5,3271.4,6.11358]
[1722401812120,0.94818976,3271.6,3271.5,3.0567]
[1722401812419,0.94818976,3271.6,3271.5,6.1134]
[1722401813028,0.94818976,3271.8,3271.6,3.0566]
[1722401813176,0.94818976,3271.8,3271.7,3.05651]
[1722401815020,0.9480649,3271.8,3271.7,3.05651]
[1722401817196,0.09137993,3271.8,3271.7,6.11302]
[1722401817422,0.09137993,3271.8,3271.7,9.16203288]
[1722401818140,0.72351785,3271.8,3271.7,9.16203288]
[1722401818928,0.09137993,3271.8,3271.7,11.51213]
[1722401819128,0.63213792,3272.0,3271.9,6.11264]
[1722401819449,0.63213792,3272.1,3272.0,6.11246]
[1722401819998,0.9480649,3272.2,3272.1,3.05614]
[1722401820237,0.9480649,3272.2,3272.1,6.11228]
[1722401820407,0.9480649,3272.2,3272.1,6.723508]
[1722401820895,2.65907769,3272.9,3272.1,3.667368]
[1722401821139,0.94807873,3272.3,3272.2,3.05604]
[1722401821319,1.26410498,3272.4,3272.2,3.05604]
[1722401821521,1.26410498,3272.4,3272.0,3.05618]
[1722401821722,0.94807912,3272.1,3272.0,3.05618]
[1722401821916,0.94807912,3272.2,3272.1,3.05614]
[1722401822108,0.94807912,3272.2,3272.0,3.361798]
[1722401822307,0.94807912,3272.1,3272.0,3.05618]
[1722401822513,0.94807912,3272.1,3271.7,38.05642]